[Event "CCT Chessable Masters Play-In 2025"]
[Site "Online"]
[Date "2025.02.17"]
[Round "5.39"]
[White "Sarana, Alexey"]
[Black "Henriquez Villagra, Cristobal"]
[Result "0-1"]
[ECO "D31"]
[WhiteElo "2672"]
[BlackElo "2597"]
[PlyCount "158"]
[EventDate "2025.02.13"]
[EventType "swiss"]
[EventCountry "NET"]
[TimeControl "600"]
[WhiteClock "0:00:09"]
[BlackClock "0:00:23"]

1. d4 {[%emt 0:00:01]} d5 {[%emt 0:02:35]} 2. c4 {[%emt 0:00:01]} e6 {[%emt 0:00:01]} 3. Nc3 {[%emt 0:00:01]} c6 {[%emt 0:00:01]} 4. e3 {[%emt 0:00:05]} Nd7 {[%emt 0:00:01]} 5. Bd3 {[%emt 0:00:08]} f5 {[%emt 0:00:06]} 6. Nge2 {[%emt 0:00:22]} Bd6 {[%emt 0:00:08]} 7. cxd5 {[%emt 0:00:34]} cxd5 {[%emt 0:00:02]} 8. Nb5 {[%emt 0:00:03]} Bb8 {[%emt 0:00:19]} 9. Nf4 {[%emt 0:00:34]} Ndf6 {[%emt 0:00:43]} 10. Qa4 {[%emt 0:00:23]} Kf7 {[%emt 0:00:18]} 11. Bd2 {[%emt 0:00:20]} a6 {[%emt 0:00:19]} 12. Nc3 {[%emt 0:00:03]} Ne7 {[%emt 0:00:12]} 13. h4 {[%emt 0:00:09]} Ne4 {[%emt 0:00:09]} 14. Nce2 {[%emt 0:00:31]} Nxd2 {[%emt 0:00:20]} 15. Kxd2 {[%emt 0:00:00]} Bd6 {[%emt 0:00:01]} 16. Rhc1 {[%emt 0:00:15]} Bd7 {[%emt 0:00:02]} 17. Qb3 {[%emt 0:00:06]} Qa5+ {[%emt 0:00:01]} 18. Nc3 {[%emt 0:00:01]} b5 {[%emt 0:00:24]} 19. Qd1 {[%emt 0:00:39]} Bxf4 {[%emt 0:00:37]} 20. exf4 {[%emt 0:00:00]} Qb4 {[%emt 0:00:01]} 21. Ke3 {[%emt 0:00:09]} Rhc8 {[%emt 0:00:08]} 22. a3 {[%emt 0:00:16]} Qd6 {[%emt 0:00:20]} 23. Ne2 {[%emt 0:00:01]} a5 {[%emt 0:00:18]} 24. Qd2 {[%emt 0:00:06]} b4 {[%emt 0:00:02]} 25. axb4 {[%emt 0:00:02]} axb4 {[%emt 0:00:00]} 26. Rxa8 {[%emt 0:00:10]} Rxa8 {[%emt 0:00:01]} 27. Ng1 {[%emt 0:00:06]} Qb6 {[%emt 0:00:08]} 28. Nf3 {[%emt 0:00:04]} Nc6 {[%emt 0:00:01]} 29. Qc2 {[%emt 0:00:20]} Ra5 {[%emt 0:00:04]} 30. g3 {[%emt 0:00:05]} Ke7 {[%emt 0:00:01]} 31. h5 {[%emt 0:00:21]} h6 {[%emt 0:00:05]} 32. Rh1 {[%emt 0:00:09]} Kd6 {[%emt 0:00:06]} 33. Qd2 {[%emt 0:00:05]} b3 {[%emt 0:00:03]} 34. Qc3 {[%emt 0:00:03]} Be8 {[%emt 0:00:04]} 35. Be2 {[%emt 0:00:17]} Ra4 {[%emt 0:00:04]} 36. Rc1 {[%emt 0:00:05]} Rb4 {[%emt 0:00:52]} 37. Qd2 {[%emt 0:00:34]} Ra4 {[%emt 0:00:08]} 38. Qc3 {[%emt 0:00:20]} Rb4 {[%emt 0:00:01]} 39. Rh1 {[%emt 0:00:01]} Ra4 {[%emt 0:00:03]} 40. Bd3 {[%emt 0:00:07]} Qb4 {[%emt 0:00:05]} 41. Qxb4+ {[%emt 0:00:06]} Nxb4 {[%emt 0:00:00]} 42. Kd2 {[%emt 0:00:33]} Ra2 {[%emt 0:00:01]} 43. Bb1 {[%emt 0:00:03]} Rxb2+ {[%emt 0:00:02]} 44. Kc3 {[%emt 0:00:01]} Rxf2 {[%emt 0:00:01]} 45. Ne5 {[%emt 0:00:08]} Nc6 {[%emt 0:00:00]} 46. Nxc6 {[%emt 0:00:18]} Bxc6 {[%emt 0:00:01]} 47. Kxb3 {[%emt 0:00:01]} Rf3+ {[%emt 0:00:00]} 48. Kb4 {[%emt 0:00:01]} Rxg3 {[%emt 0:00:00]} 49. Bc2 {[%emt 0:00:05]} Rg4 {[%emt 0:00:01]} 50. Rf1 {[%emt 0:00:02]} Be8 {[%emt 0:00:01]} 51. Ra1 {[%emt 0:00:12]} Ke7 {[%emt 0:00:03]} 52. Bd1 {[%emt 0:00:08]} Rxf4 {[%emt 0:00:02]} 53. Kc5 {[%emt 0:00:00]} Kf6 {[%emt 0:00:02]} 54. Ra8 {[%emt 0:00:01]} Bf7 {[%emt 0:00:01]} 55. Rf8 {[%emt 0:00:02]} Ke7 {[%emt 0:00:02]} 56. Ra8 {[%emt 0:00:01]} Re4 {[%emt 0:00:00]} 57. Ra7+ {[%emt 0:00:07]} Kf6 {[%emt 0:00:01]} 58. Ra8 {[%emt 0:00:00]} f4 {[%emt 0:00:01]} 59. Kd6 {[%emt 0:00:01]} Rxd4 {[%emt 0:00:05]} 60. Be2 {[%emt 0:00:01]} Rb4 {[%emt 0:00:04]} 61. Rf8 {[%emt 0:00:01]} Rb7 {[%emt 0:00:01]} 62. Bd3 {[%emt 0:00:02]} e5 {[%emt 0:00:02]} 63. Kc6 {[%emt 0:00:06]} Re7 {[%emt 0:00:01]} 64. Kc5 {[%emt 0:00:01]} e4 {[%emt 0:00:01]} 65. Bb5 {[%emt 0:00:00]} e3 {[%emt 0:00:02]} 66. Be2 {[%emt 0:00:01]} f3 {[%emt 0:00:00]} 67. Bxf3 {[%emt 0:00:01]} e2 {[%emt 0:00:00]} 68. Bxe2 {[%emt 0:00:01]} Rxe2 {[%emt 0:00:01]} 69. Ra8 {[%emt 0:00:01]} Re5 {[%emt 0:00:01]} 70. Ra6+ {[%emt 0:00:01]} Be6 {[%emt 0:00:00]} 71. Ra7 {[%emt 0:00:00]} Rxh5 {[%emt 0:00:01]} 72. Ra8 {[%emt 0:00:01]} Rf5 {[%emt 0:00:01]} 73. Rf8+ {[%emt 0:00:00]} Bf7 {[%emt 0:00:00]} 74. Kd4 {[%emt 0:00:02]} h5 {[%emt 0:00:00]} 75. Rh8 {[%emt 0:00:01]} g5 {[%emt 0:00:01]} 76. Ke3 {[%emt 0:00:00]} Kg7 {[%emt 0:00:01]} 77. Rd8 {[%emt 0:00:01]} h4 {[%emt 0:00:01]} 78. Ra8 {[%emt 0:00:02]} h3 {[%emt 0:00:00]} 79. Ra2 {[%emt 0:00:01]} d4+ {[%emt 0:00:01]} 0-1

[Event "CCT Chessable Masters Play-In 2025"]
[Site "Online"]
[Date "2025.02.17"]
[Round "5.40"]
[White "Oparin, Grigoriy"]
[Black "Smirnov, Pavel"]
[Result "1/2-1/2"]
[ECO "C50"]
[WhiteElo "2660"]
[BlackElo "2476"]
[PlyCount "121"]
[EventDate "2025.02.13"]
[EventType "swiss"]
[EventCountry "NET"]
[TimeControl "600"]
[WhiteClock "0:03:29"]
[BlackClock "0:02:00"]

1. e4 {[%emt 0:00:01]} e5 {[%emt 0:00:02]} 2. Nf3 {[%emt 0:00:00]} Nc6 {[%emt 0:00:01]} 3. Bc4 {[%emt 0:00:01]} Nf6 {[%emt 0:00:02]} 4. d3 {[%emt 0:00:03]} Bc5 {[%emt 0:00:02]} 5. Nc3 {[%emt 0:00:01]} h6 {[%emt 0:00:03]} 6. O-O {[%emt 0:00:03]} O-O {[%emt 0:00:01]} 7. a4 {[%emt 0:00:04]} d6 {[%emt 0:00:05]} 8. h3 {[%emt 0:00:02]} Be6 {[%emt 0:00:04]} 9. Bd2 {[%emt 0:00:16]} Re8 {[%emt 0:00:07]} 10. Re1 {[%emt 0:00:05]} a6 {[%emt 0:00:02]} 11. Bxe6 {[%emt 0:00:18]} fxe6 {[%emt 0:00:19]} 12. Ne2 {[%emt 0:00:06]} a5 {[%emt 0:00:07]} 13. c3 {[%emt 0:00:03]} Bb6 {[%emt 0:00:07]} 14. Ng3 {[%emt 0:00:02]} Rf8 {[%emt 0:00:02]} 15. Be3 {[%emt 0:00:01]} Bxe3 {[%emt 0:00:02]} 16. Rxe3 {[%emt 0:00:00]} Kh7 {[%emt 0:00:09]} 17. Qb3 {[%emt 0:00:02]} Qd7 {[%emt 0:00:20]} 18. Rd1 {[%emt 0:00:01]} Rab8 {[%emt 0:00:12]} 19. d4 {[%emt 0:00:16]} exd4 {[%emt 0:00:03]} 20. cxd4 {[%emt 0:00:01]} Nb4 {[%emt 0:00:00]} 21. Ne1 {[%emt 0:00:19]} b5 {[%emt 0:00:06]} 22. axb5 {[%emt 0:00:05]} Rxb5 {[%emt 0:00:14]} 23. Qc3 {[%emt 0:00:07]} Rfb8 {[%emt 0:00:04]} 24. Nd3 {[%emt 0:00:16]} a4 {[%emt 0:01:26]} 25. Nxb4 {[%emt 0:00:12]} Rxb4 {[%emt 0:00:03]} 26. Re2 {[%emt 0:00:01]} Rb3 {[%emt 0:00:04]} 27. Qc1 {[%emt 0:00:00]} R8b7 {[%emt 0:00:15]} 28. Rc2 {[%emt 0:00:13]} Qb5 {[%emt 0:00:02]} 29. Qa1 {[%emt 0:00:41]} Rxb2 {[%emt 0:00:34]} 30. Rxb2 {[%emt 0:00:00]} Qxb2 {[%emt 0:00:00]} 31. Qxa4 {[%emt 0:00:01]} Rb4 {[%emt 0:00:01]} 32. Qa7 {[%emt 0:00:12]} Qc2 {[%emt 0:00:12]} 33. Re1 {[%emt 0:00:16]} Rb2 {[%emt 0:00:15]} 34. Rf1 {[%emt 0:00:01]} Nxe4 {[%emt 0:00:06]} 35. Nxe4 {[%emt 0:00:01]} Qxe4 {[%emt 0:00:01]} 36. Qxc7 {[%emt 0:00:03]} Qxd4 {[%emt 0:00:01]} 37. Qe7 {[%emt 0:00:08]} Qe5 {[%emt 0:00:08]} 38. Qc7 {[%emt 0:00:22]} Re2 {[%emt 0:00:08]} 39. Qc1 {[%emt 0:00:02]} d5 {[%emt 0:00:05]} 40. Qb1+ {[%emt 0:00:03]} Qe4 {[%emt 0:00:03]} 41. Qxe4+ {[%emt 0:00:31]} Rxe4 {[%emt 0:00:08]} 42. Ra1 {[%emt 0:00:01]} Kg6 {[%emt 0:00:04]} 43. g3 {[%emt 0:00:07]} Kf6 {[%emt 0:00:02]} 44. Ra7 {[%emt 0:00:04]} h5 {[%emt 0:00:05]} 45. h4 {[%emt 0:00:04]} Rb4 {[%emt 0:00:05]} 46. Kg2 {[%emt 0:00:04]} Rb3 {[%emt 0:00:02]} 47. Rd7 {[%emt 0:00:01]} g6 {[%emt 0:00:05]} 48. Kf1 {[%emt 0:00:01]} g5 {[%emt 0:00:27]} 49. hxg5+ {[%emt 0:00:04]} Kxg5 {[%emt 0:00:01]} 50. Rg7+ {[%emt 0:00:02]} Kf6 {[%emt 0:00:02]} 51. Rg8 {[%emt 0:00:03]} d4 {[%emt 0:00:03]} 52. Rh8 {[%emt 0:00:13]} e5 {[%emt 0:00:09]} 53. Rxh5 {[%emt 0:00:03]} e4 {[%emt 0:00:01]} 54. Rd5 {[%emt 0:00:07]} d3 {[%emt 0:00:03]} 55. Ke1 {[%emt 0:00:29]} Ke6 {[%emt 0:00:40]} 56. Rd8 {[%emt 0:00:01]} Ke5 {[%emt 0:00:07]} 57. Re8+ {[%emt 0:00:03]} Kf5 {[%emt 0:00:05]} 58. Rf8+ {[%emt 0:00:02]} Ke5 {[%emt 0:00:03]} 59. Re8+ {[%emt 0:00:00]} Kf5 {[%emt 0:00:05]} 60. Rf8+ {[%emt 0:00:01]} Ke5 {[%emt 0:00:05]} 61. Re8+ {[%emt 0:00:01]} 1/2-1/2

[Event "CCT Chessable Masters Play-In 2025"]
[Site "Online"]
[Date "2025.02.17"]
[Round "5.41"]
[White "Eljanov, Pavel"]
[Black "Grandelius, Nils"]
[Result "1/2-1/2"]
[ECO "D02"]
[WhiteElo "2658"]
[BlackElo "2644"]
[PlyCount "94"]
[EventDate "2025.02.13"]
[EventType "swiss"]
[EventCountry "NET"]
[TimeControl "600"]
[WhiteClock "0:00:47"]
[BlackClock "0:00:40"]

1. d4 {[%emt 0:00:01]} d5 {[%emt 0:00:02]} 2. Nf3 {[%emt 0:00:05]} e6 {[%emt 0:00:04]} 3. Bf4 {[%emt 0:00:01]} Bd6 {[%emt 0:00:08]} 4. e3 {[%emt 0:00:02]} Bxf4 {[%emt 0:00:01]} 5. exf4 {[%emt 0:00:01]} Ne7 {[%emt 0:00:00]} 6. g3 {[%emt 0:00:04]} b6 {[%emt 0:00:04]} 7. c3 {[%emt 0:00:04]} O-O {[%emt 0:00:01]} 8. h4 {[%emt 0:00:03]} c5 {[%emt 0:00:08]} 9. h5 {[%emt 0:00:02]} h6 {[%emt 0:00:01]} 10. Na3 {[%emt 0:00:04]} Ba6 {[%emt 0:00:19]} 11. Bxa6 {[%emt 0:00:04]} Nxa6 {[%emt 0:00:00]} 12. Kf1 {[%emt 0:00:15]} Nb8 {[%emt 0:00:12]} 13. Kg2 {[%emt 0:00:03]} Nbc6 {[%emt 0:00:01]} 14. Nc2 {[%emt 0:00:06]} Nf5 {[%emt 0:00:23]} 15. g4 {[%emt 0:00:03]} Nd6 {[%emt 0:00:01]} 16. Ne5 {[%emt 0:00:13]} Rc8 {[%emt 0:00:08]} 17. Qf3 {[%emt 0:00:18]} Nxe5 {[%emt 0:01:28]} 18. dxe5 {[%emt 0:00:13]} Nc4 {[%emt 0:01:23]} 19. b3 {[%emt 0:00:04]} Na5 {[%emt 0:00:03]} 20. Qg3 {[%emt 0:00:26]} f6 {[%emt 0:00:25]} 21. Rae1 {[%emt 0:00:20]} fxe5 {[%emt 0:00:05]} 22. Rxe5 {[%emt 0:00:32]} Qf6 {[%emt 0:00:01]} 23. g5 {[%emt 0:01:27]} Qxf4 {[%emt 0:00:15]} 24. gxh6 {[%emt 0:00:03]} Qxh6 {[%emt 0:01:32]} 25. Rg5 {[%emt 0:00:01]} Rc7 {[%emt 0:00:00]} 26. Rh4 {[%emt 0:01:46]} Rcf7 {[%emt 0:00:06]} 27. f4 {[%emt 0:00:01]} Qh7 {[%emt 0:00:45]} 28. Rg6 {[%emt 0:00:05]} Nc6 {[%emt 0:00:12]} 29. Ne3 {[%emt 0:01:13]} Ne7 {[%emt 0:00:04]} 30. Qg5 {[%emt 0:00:08]} Nf5 {[%emt 0:00:23]} 31. Nxf5 {[%emt 0:00:44]} Rxf5 {[%emt 0:00:00]} 32. Qe7 {[%emt 0:00:01]} Rxh5 {[%emt 0:00:24]} 33. Qxe6+ {[%emt 0:00:02]} Kh8 {[%emt 0:00:12]} 34. Rxh5 {[%emt 0:00:02]} Qxh5 {[%emt 0:00:01]} 35. Rg5 {[%emt 0:00:05]} Qf7 {[%emt 0:00:11]} 36. Qxf7 {[%emt 0:00:11]} Rxf7 {[%emt 0:00:00]} 37. Kf3 {[%emt 0:00:00]} Rd7 {[%emt 0:00:01]} 38. f5 {[%emt 0:00:12]} Kh7 {[%emt 0:00:01]} 39. Rg6 {[%emt 0:00:00]} d4 {[%emt 0:00:02]} 40. cxd4 {[%emt 0:00:01]} cxd4 {[%emt 0:00:00]} 41. Rg2 {[%emt 0:00:02]} d3 {[%emt 0:00:04]} 42. Rd2 {[%emt 0:00:01]} Kh6 {[%emt 0:00:02]} 43. Kf4 {[%emt 0:00:01]} Rd4+ {[%emt 0:00:03]} 44. Ke5 {[%emt 0:00:01]} Rd8 {[%emt 0:00:02]} 45. Kf4 {[%emt 0:00:01]} Rd4+ {[%emt 0:00:01]} 46. Ke5 {[%emt 0:00:01]} Rd8 {[%emt 0:00:00]} 47. Kf4 {[%emt 0:00:00]} Rd4+ {[%emt 0:00:01]} 1/2-1/2

[Event "CCT Chessable Masters Play-In 2025"]
[Site "Online"]
[Date "2025.02.17"]
[Round "5.42"]
[White "Lagarde, Maxime"]
[Black "Harikrishna, Pentala"]
[Result "1-0"]
[ECO "D03"]
[WhiteElo "2604"]
[BlackElo "2695"]
[PlyCount "101"]
[EventDate "2025.02.13"]
[EventType "swiss"]
[EventCountry "NET"]
[TimeControl "600"]
[WhiteClock "0:01:50"]
[BlackClock "0:00:17"]

1. d4 {[%emt 0:00:01]} Nf6 {[%emt 0:00:03]} 2. Nf3 {[%emt 0:00:08]} d5 {[%emt 0:00:05]} 3. Bg5 {[%emt 0:00:21]} Ne4 {[%emt 0:00:07]} 4. Bh4 {[%emt 0:00:02]} c6 {[%emt 0:00:24]} 5. Nbd2 {[%emt 0:00:03]} Qb6 {[%emt 0:00:18]} 6. Rb1 {[%emt 0:00:16]} Bf5 {[%emt 0:00:11]} 7. e3 {[%emt 0:00:02]} Nd7 {[%emt 0:00:08]} 8. Bd3 {[%emt 0:00:03]} e6 {[%emt 0:00:11]} 9. O-O {[%emt 0:00:33]} Nxd2 {[%emt 0:00:06]} 10. Qxd2 {[%emt 0:00:05]} Bg4 {[%emt 0:00:18]} 11. Ne5 {[%emt 0:00:14]} Nxe5 {[%emt 0:00:02]} 12. dxe5 {[%emt 0:00:00]} Bh5 {[%emt 0:00:03]} 13. e4 {[%emt 0:00:09]} Bg6 {[%emt 0:00:11]} 14. exd5 {[%emt 0:00:09]} cxd5 {[%emt 0:00:01]} 15. b4 {[%emt 0:00:38]} Rc8 {[%emt 0:00:18]} 16. Kh1 {[%emt 0:00:21]} Be7 {[%emt 0:00:57]} 17. Bxe7 {[%emt 0:00:06]} Kxe7 {[%emt 0:00:00]} 18. Qg5+ {[%emt 0:00:06]} Kf8 {[%emt 0:00:02]} 19. f4 {[%emt 0:00:05]} Bxd3 {[%emt 0:00:13]} 20. cxd3 {[%emt 0:00:01]} Qe3 {[%emt 0:00:01]} 21. Rbe1 {[%emt 0:00:08]} Qd2 {[%emt 0:00:08]} 22. Rd1 {[%emt 0:00:12]} Qe3 {[%emt 0:00:14]} 23. Rf3 {[%emt 0:00:10]} Qd2 {[%emt 0:00:29]} 24. Rdf1 {[%emt 0:00:21]} h6 {[%emt 0:00:10]} 25. Qh4 {[%emt 0:00:03]} Qxb4 {[%emt 0:00:03]} 26. h3 {[%emt 0:00:08]} Kg8 {[%emt 0:00:08]} 27. Qg3 {[%emt 0:00:14]} Kh7 {[%emt 0:00:46]} 28. f5 {[%emt 0:00:02]} Rc7 {[%emt 0:00:01]} 29. Rf4 {[%emt 0:00:09]} Qd2 {[%emt 0:00:02]} 30. Kh2 {[%emt 0:00:47]} Rg8 {[%emt 0:00:33]} 31. Qg4 {[%emt 0:00:19]} Rc2 {[%emt 0:00:18]} 32. R1f3 {[%emt 0:00:06]} Qe2 {[%emt 0:00:08]} 33. d4 {[%emt 0:00:15]} b5 {[%emt 0:00:57]} 34. h4 {[%emt 0:00:06]} Rxa2 {[%emt 0:00:09]} 35. h5 {[%emt 0:00:03]} exf5 {[%emt 0:00:13]} 36. Qxf5+ {[%emt 0:00:08]} Kh8 {[%emt 0:00:01]} 37. Rg3 {[%emt 0:00:05]} Ra1 {[%emt 0:00:15]} 38. Qxf7 {[%emt 0:00:03]} Qe1 {[%emt 0:00:07]} 39. Kh3 {[%emt 0:00:06]} Qh1+ {[%emt 0:00:02]} 40. Kg4 {[%emt 0:00:00]} Ra2 {[%emt 0:00:17]} 41. Qxd5 {[%emt 0:00:13]} Qd1+ {[%emt 0:00:03]} 42. Qf3 {[%emt 0:00:03]} Qe1 {[%emt 0:00:10]} 43. Re4 {[%emt 0:00:07]} Qc1 {[%emt 0:00:04]} 44. e6 {[%emt 0:00:05]} Ra1 {[%emt 0:00:03]} 45. Re5 {[%emt 0:00:22]} Qd2 {[%emt 0:00:19]} 46. Qe3 {[%emt 0:00:06]} Qd1+ {[%emt 0:00:02]} 47. Rf3 {[%emt 0:00:01]} Qh1 {[%emt 0:00:03]} 48. g3 {[%emt 0:00:04]} b4 {[%emt 0:00:10]} 49. e7 {[%emt 0:00:03]} Ra3 {[%emt 0:00:01]} 50. Qf4 {[%emt 0:00:16]} g6 {[%emt 0:00:08]} 51. Qxh6# {[%emt 0:00:02]} 1-0

[Event "CCT Chessable Masters Play-In 2025"]
[Site "Online"]
[Date "2025.02.17"]
[Round "5.43"]
[White "Suyarov, Mukhammadzokhid"]
[Black "Mendonca, Leon Luke"]
[Result "0-1"]
[ECO "B52"]
[WhiteElo "2465"]
[BlackElo "2641"]
[PlyCount "88"]
[EventDate "2025.02.13"]
[EventType "swiss"]
[EventCountry "NET"]
[TimeControl "600"]
[BlackClock "0:01:39"]

1. e4 {[%emt 0:00:01]} c5 {[%emt 0:00:03]} 2. Nf3 {[%emt 0:00:10]} d6 {[%emt 0:00:03]} 3. Bb5+ {[%emt 0:00:04]} Bd7 {[%emt 0:00:01]} 4. c4 {[%emt 0:00:08]} Nf6 {[%emt 0:00:09]} 5. Nc3 {[%emt 0:00:01]} g6 {[%emt 0:00:00]} 6. O-O {[%emt 0:00:03]} Bg7 {[%emt 0:00:00]} 7. h3 {[%emt 0:00:04]} O-O {[%emt 0:00:02]} 8. d3 {[%emt 0:00:09]} Nc6 {[%emt 0:00:06]} 9. a3 {[%emt 0:00:06]} Ne8 {[%emt 0:00:17]} 10. Bg5 {[%emt 0:01:50]} Nc7 {[%emt 0:00:43]} 11. Bxc6 {[%emt 0:00:07]} bxc6 {[%emt 0:00:13]} 12. Qd2 {[%emt 0:00:04]} Rb8 {[%emt 0:00:12]} 13. Rab1 {[%emt 0:00:06]} a5 {[%emt 0:00:04]} 14. Bh6 {[%emt 0:00:08]} e5 {[%emt 0:00:17]} 15. Bxg7 {[%emt 0:00:04]} Kxg7 {[%emt 0:00:00]} 16. Ne2 {[%emt 0:00:09]} Ne6 {[%emt 0:00:06]} 17. b4 {[%emt 0:00:15]} axb4 {[%emt 0:00:04]} 18. axb4 {[%emt 0:00:00]} cxb4 {[%emt 0:00:00]} 19. Rxb4 {[%emt 0:00:01]} Qa5 {[%emt 0:00:20]} 20. Rfb1 {[%emt 0:00:14]} Rxb4 {[%emt 0:00:02]} 21. Qxb4 {[%emt 0:00:00]} Qxb4 {[%emt 0:00:01]} 22. Rxb4 {[%emt 0:00:01]} Nc5 {[%emt 0:00:01]} 23. d4 {[%emt 0:01:26]} exd4 {[%emt 0:00:05]} 24. Nexd4 {[%emt 0:00:00]} Nxe4 {[%emt 0:00:40]} 25. Rb7 {[%emt 0:00:04]} Rd8 {[%emt 0:00:47]} 26. Nb3 {[%emt 0:01:21]} Be6 {[%emt 0:00:25]} 27. Nbd4 {[%emt 0:00:39]} Bd7 {[%emt 0:00:11]} 28. Nb3 {[%emt 0:00:02]} c5 {[%emt 0:00:01]} 29. Nfd2 {[%emt 0:00:05]} Nxd2 {[%emt 0:00:57]} 30. Nxd2 {[%emt 0:00:01]} Be6 {[%emt 0:00:00]} 31. Rc7 {[%emt 0:00:11]} Kf6 {[%emt 0:00:06]} 32. f4 {[%emt 0:00:11]} Kf5 {[%emt 0:00:55]} 33. g3 {[%emt 0:00:03]} Ra8 {[%emt 0:00:01]} 34. Kf2 {[%emt 0:00:22]} Ra3 {[%emt 0:00:01]} 35. Nf1 {[%emt 0:01:09]} Ke4 {[%emt 0:00:06]} 36. Rc6 {[%emt 0:00:01]} Ra2+ {[%emt 0:00:30]} 37. Ke1 {[%emt 0:00:07]} Kf3 {[%emt 0:00:05]} 38. Nd2+ {[%emt 0:00:06]} Ke3 {[%emt 0:00:02]} 39. Nf1+ {[%emt 0:00:04]} Kf3 {[%emt 0:00:00]} 40. Nd2+ {[%emt 0:00:01]} Kxg3 {[%emt 0:00:01]} 41. Rxd6 {[%emt 0:00:01]} Kxf4 {[%emt 0:00:05]} 42. Nb3 {[%emt 0:00:03]} Bxc4 {[%emt 0:00:33]} 43. Nxc5 {[%emt 0:00:01]} Ke3 {[%emt 0:00:00]} 44. Kd1 Ra5 {[%emt 0:00:06]} 0-1

[Event "CCT Chessable Masters Play-In 2025"]
[Site "Online"]
[Date "2025.02.17"]
[Round "5.44"]
[White "Tari, Aryan"]
[Black "Indjic, Aleksandar"]
[Result "1-0"]
[ECO "C47"]
[WhiteElo "2621"]
[BlackElo "2650"]
[PlyCount "79"]
[EventDate "2025.02.13"]
[EventType "swiss"]
[EventCountry "NET"]
[TimeControl "600"]
[WhiteClock "0:03:48"]
[BlackClock "0:02:35"]

1. e4 {[%emt 0:00:01]} e5 {[%emt 0:00:20]} 2. Nf3 {[%emt 0:00:02]} Nc6 {[%emt 0:00:00]} 3. Nc3 {[%emt 0:00:13]} Nf6 {[%emt 0:00:02]} 4. h3 {[%emt 0:00:01]} Bb4 {[%emt 0:00:04]} 5. a3 {[%emt 0:00:01]} Bxc3 {[%emt 0:00:01]} 6. dxc3 {[%emt 0:00:00]} d6 {[%emt 0:00:02]} 7. Bd3 {[%emt 0:00:02]} Bd7 {[%emt 0:00:07]} 8. Qe2 {[%emt 0:00:03]} Qe7 {[%emt 0:00:01]} 9. Be3 {[%emt 0:00:08]} h6 {[%emt 0:00:02]} 10. O-O-O {[%emt 0:00:09]} O-O-O {[%emt 0:00:02]} 11. g4 {[%emt 0:00:32]} Kb8 {[%emt 0:00:01]} 12. Nd2 {[%emt 0:00:08]} Rc8 {[%emt 0:00:06]} 13. c4 {[%emt 0:00:46]} Nh7 {[%emt 0:00:05]} 14. f3 {[%emt 0:00:07]} Ng5 {[%emt 0:00:02]} 15. Qf2 {[%emt 0:00:15]} Ne6 {[%emt 0:00:02]} 16. c3 {[%emt 0:00:01]} h5 {[%emt 0:00:23]} 17. b4 {[%emt 0:00:03]} Ncd8 {[%emt 0:00:04]} 18. Bxa7+ {[%emt 0:00:06]} Ka8 {[%emt 0:00:03]} 19. Be3 {[%emt 0:00:04]} c5 {[%emt 0:00:01]} 20. Kb2 {[%emt 0:00:04]} Nc6 {[%emt 0:00:09]} 21. Nb3 {[%emt 0:00:11]} b6 {[%emt 0:00:01]} 22. Bc2 {[%emt 0:00:11]} Rcd8 {[%emt 0:00:09]} 23. b5 {[%emt 0:00:06]} Na5 {[%emt 0:00:11]} 24. Nxa5 {[%emt 0:00:03]} bxa5 {[%emt 0:00:01]} 25. g5 {[%emt 0:00:13]} f6 {[%emt 0:00:28]} 26. gxf6 {[%emt 0:00:13]} gxf6 {[%emt 0:00:01]} 27. h4 {[%emt 0:00:04]} Kb7 {[%emt 0:00:03]} 28. Rhg1 {[%emt 0:00:07]} Rhg8 {[%emt 0:00:18]} 29. Qd2 {[%emt 0:00:31]} Rxg1 {[%emt 0:00:09]} 30. Rxg1 {[%emt 0:00:02]} Kc7 {[%emt 0:00:58]} 31. Qd5 {[%emt 0:00:24]} Rb8 {[%emt 0:00:04]} 32. Bd1 {[%emt 0:00:10]} Be8 {[%emt 0:00:08]} 33. Be2 {[%emt 0:00:03]} Qd7 {[%emt 0:00:13]} 34. Bf1 {[%emt 0:00:08]} Bf7 {[%emt 0:00:12]} 35. Bh3 {[%emt 0:00:02]} a4 {[%emt 0:00:52]} 36. Qd1 {[%emt 0:00:09]} Qe8 {[%emt 0:00:17]} 37. Qxa4 {[%emt 0:00:15]} Ra8 {[%emt 0:00:01]} 38. Qd1 {[%emt 0:00:00]} Qf8 {[%emt 0:00:15]} 39. Qd5 {[%emt 0:00:33]} Nd4 {[%emt 0:01:27]} 40. Rg7 {[%emt 0:00:01]} 1-0

[Event "CCT Chessable Masters Play-In 2025"]
[Site "Online"]
[Date "2025.02.17"]
[Round "5.45"]
[White "Sethuraman, S.P."]
[Black "Iturrizaga Bonelli, Eduardo"]
[Result "0-1"]
[ECO "B30"]
[WhiteElo "2557"]
[BlackElo "2577"]
[PlyCount "114"]
[EventDate "2025.02.13"]
[EventType "swiss"]
[EventCountry "NET"]
[TimeControl "600"]
[WhiteClock "0:00:07"]
[BlackClock "0:00:02"]

1. e4 {[%emt 0:00:02]} c5 {[%emt 0:00:18]} 2. Nf3 {[%emt 0:00:01]} Nc6 {[%emt 0:00:02]} 3. Bb5 {[%emt 0:00:03]} Nf6 {[%emt 0:00:03]} 4. Bxc6 {[%emt 0:00:09]} dxc6 {[%emt 0:00:04]} 5. d3 {[%emt 0:00:01]} Bg4 {[%emt 0:00:06]} 6. Nbd2 {[%emt 0:00:09]} e6 {[%emt 0:00:09]} 7. h3 {[%emt 0:00:03]} Bh5 {[%emt 0:00:01]} 8. b3 {[%emt 0:00:19]} Be7 {[%emt 0:00:39]} 9. Bb2 {[%emt 0:00:02]} O-O {[%emt 0:00:00]} 10. g4 {[%emt 0:00:08]} Bg6 {[%emt 0:00:02]} 11. h4 {[%emt 0:00:02]} h5 {[%emt 0:00:31]} 12. Ne5 {[%emt 0:01:30]} hxg4 {[%emt 0:00:01]} 13. Qe2 {[%emt 0:00:22]} Bh5 {[%emt 0:00:04]} 14. O-O-O {[%emt 0:00:05]} Bd6 {[%emt 0:00:34]} 15. Ndc4 {[%emt 0:00:22]} Bc7 {[%emt 0:00:13]} 16. Rdg1 {[%emt 0:00:09]} Qe7 {[%emt 0:00:43]} 17. f3 {[%emt 0:00:45]} gxf3 {[%emt 0:01:11]} 18. Qe3 {[%emt 0:00:02]} Ne8 {[%emt 0:00:51]} 19. Nxf3 {[%emt 0:02:19]} f6 {[%emt 0:00:20]} 20. e5 {[%emt 0:00:01]} b5 {[%emt 0:00:12]} 21. Ncd2 {[%emt 0:00:14]} f5 {[%emt 0:00:28]} 22. Rg5 {[%emt 0:00:04]} Bg4 {[%emt 0:00:39]} 23. h5 {[%emt 0:00:11]} Bd8 {[%emt 0:00:49]} 24. Rg6 {[%emt 0:00:07]} Qf7 {[%emt 0:00:17]} 25. Ng5 {[%emt 0:00:14]} Bxg5 {[%emt 0:00:19]} 26. Qxg5 {[%emt 0:00:07]} Kh7 {[%emt 0:00:01]} 27. Ba3 {[%emt 0:00:20]} b4 {[%emt 0:00:23]} 28. Bb2 {[%emt 0:00:02]} Nc7 {[%emt 0:00:12]} 29. Nc4 {[%emt 0:00:03]} Nd5 {[%emt 0:00:00]} 30. Nd6 {[%emt 0:00:34]} Qe7 {[%emt 0:00:00]} 31. Qxe7 {[%emt 0:00:04]} Nxe7 {[%emt 0:00:01]} 32. Rxe6 {[%emt 0:00:00]} Nd5 {[%emt 0:00:00]} 33. Rg6 {[%emt 0:00:08]} Nf4 {[%emt 0:00:03]} 34. e6 {[%emt 0:00:46]} Nxg6 {[%emt 0:00:03]} 35. hxg6+ {[%emt 0:00:01]} Kxg6 {[%emt 0:00:00]} 36. e7 {[%emt 0:00:01]} Rfe8 {[%emt 0:00:01]} 37. Re1 {[%emt 0:00:02]} f4 {[%emt 0:00:04]} 38. Re4 {[%emt 0:00:04]} Bd7 {[%emt 0:00:19]} 39. Nxe8 {[%emt 0:00:04]} Rxe8 {[%emt 0:00:00]} 40. Kd2 {[%emt 0:00:03]} Bf5 {[%emt 0:00:07]} 41. Rxf4 {[%emt 0:00:02]} Rxe7 {[%emt 0:00:01]} 42. Rf2 {[%emt 0:00:00]} Bg4 {[%emt 0:00:02]} 43. Rg2 {[%emt 0:00:01]} Kh5 {[%emt 0:00:00]} 44. Rf2 {[%emt 0:00:00]} g5 {[%emt 0:00:02]} 45. d4 {[%emt 0:00:01]} cxd4 {[%emt 0:00:01]} 46. Rh2+ {[%emt 0:00:00]} Kg6 {[%emt 0:00:00]} 47. Bxd4 {[%emt 0:00:01]} Bf5 {[%emt 0:00:00]} 48. Be3 {[%emt 0:00:01]} Rd7+ {[%emt 0:00:01]} 49. Ke2 {[%emt 0:00:01]} g4 {[%emt 0:00:00]} 50. Rg2 {[%emt 0:00:00]} Kf7 {[%emt 0:00:00]} 51. Kf2 {[%emt 0:00:01]} Ke6 {[%emt 0:00:00]} 52. Kg3 {[%emt 0:00:01]} Rf7 {[%emt 0:00:00]} 53. Bf4 {[%emt 0:00:00]} Be4 {[%emt 0:00:00]} 54. Re2 {[%emt 0:00:00]} Kf5 {[%emt 0:00:00]} 55. Rf2 {[%emt 0:00:01]} Rh7 {[%emt 0:00:01]} 56. Be3+ {[%emt 0:00:00]} Bf3 {[%emt 0:00:00]} 57. Bf4 {[%emt 0:00:00]} Rh3# {[%emt 0:00:00]} 0-1